[Event "Czech Youth U14 Girls 2024"]
[Site "Kouty nad Desnou"]
[Date "2024.03.13"]
[Round "6.5"]
[White "Barteckova, Nikol"]
[Black "Strazhnyk, Viktoriia"]
[Result "1-0"]
[ECO "C02"]
[WhiteElo "1612"]
[BlackElo "1570"]
[Annotator "NA"]
[PlyCount "57"]
[EventDate "2024.03.10"]
[EventType "swiss"]
[EventCountry "CZE"]
[SourceTitle "playchess.com"]
[Source "ChessBase"]
[SourceQuality "1"]
[TimeControl "40/5400+30:1800+30"]

1. e4 {[%emt 0:00:02]} e6 {[%emt 0:00:02]} 2. d4 {[%emt 0:00:05]} d5 {[%emt 0:00:04]} 3. e5 {[%emt 0:00:08]} c5 {[%emt 0:00:04]} 4. c3 {[%emt 0:00:15]} Nc6 {[%emt 0:00:13]} 5. Nf3 {[%emt 0:00:35]} Qb6 {[%emt 0:00:17]} 6. Bd3 {[%emt 0:00:54]} cxd4 {[%emt 0:01:36]} 7. O-O {[%emt 0:01:03]} dxc3 {[%emt 0:08:37]} 8. Nxc3 {[%emt 0:00:12]} Bd7 {[%emt 0:00:24]} 9. Re1 {[%emt 0:03:11]} Bc5 {[%emt 0:01:04]} 10. Na4 {[%emt 0:09:59]} Qa5 {[%emt 0:05:45]} 11. Nxc5 {[%emt 0:04:15]} Qxc5 {[%emt 0:02:05]} 12. a3 {[%emt 0:15:07]} Nge7 {[%emt 0:22:53]} 13. h4 {[%emt 0:07:23]} Nd4 {[%emt 0:25:24]} 14. Be3 {[%emt 0:18:06]} Nxf3+ {[%emt 0:01:51]} 15. Qxf3 {[%emt 0:00:15]} Qc7 {[%emt 0:02:00]} 16. Qg3 {[%emt 0:02:37]} O-O {[%emt 0:05:43]} 17. h5 {[%emt 0:02:08]} g6 {[%emt 0:02:20]} 18. Bg5 {[%emt 0:02:32]} f6 {[%emt 0:10:19]} 19. Bxf6 {[%emt 0:01:24]} Rxf6 {[%emt 0:00:40]} 20. exf6 {[%emt 0:00:18]} Qxg3 {[%emt 0:00:10]} 21. fxg3 {[%emt 0:00:16]} Nf5 {[%emt 0:01:12]} 22. g4 {[%emt 0:01:29]} Nh6 {[%emt 0:00:04]} 23. hxg6 {[%emt 0:02:03]} hxg6 {[%emt 0:00:27]} 24. g5 {[%emt 0:00:59]} Nf7 {[%emt 0:00:03]} 25. Rac1 {[%emt 0:01:46]} Nxg5 {[%emt 0:02:46]} 26. Rc7 {[%emt 0:00:41]} Bc6 {[%emt 0:00:07]} 27. Re5 {[%emt 0:01:44]} Ne4 {[%emt 0:05:46]} 28. Bxe4 {[%emt 0:00:26]} dxe4 {[%emt 0:00:08]} 29. Rxe6 {[%emt 0:00:13]} 1-0

[Event "Czech Youth U14 Girls 2024"]
[Site "Kouty nad Desnou"]
[Date "2024.03.13"]
[Round "6.6"]
[White "Kubatova, Ema"]
[Black "Mojzisova, Barbora"]
[Result "1/2-1/2"]
[ECO "D52"]
[WhiteElo "1580"]
[BlackElo "1623"]
[Annotator "NA"]
[PlyCount "71"]
[EventDate "2024.03.10"]
[EventType "swiss"]
[EventCountry "CZE"]
[SourceTitle "playchess.com"]
[Source "ChessBase"]
[SourceQuality "1"]
[TimeControl "40/5400+30:1800+30"]

1. d4 {[%emt 0:00:03]} d5 {[%emt 0:00:10]} 2. c4 {[%emt 0:00:10]} e6 {[%emt 0:00:09]} 3. Nc3 {[%emt 0:00:12]} Nf6 {[%emt 0:00:19]} 4. Bg5 {[%emt 0:00:25]} Nbd7 {[%emt 0:00:32]} 5. e3 {[%emt 0:00:46]} c6 {[%emt 0:00:26]} 6. Nf3 {[%emt 0:00:32]} Qa5 {[%emt 0:01:07]} 7. Bxf6 {[%emt 0:16:37]} Nxf6 {[%emt 0:00:14]} 8. Qa4 {[%emt 0:00:20]} Qxa4 {[%emt 0:08:44]} 9. Nxa4 {[%emt 0:00:13]} Bb4+ {[%emt 0:00:53]} 10. Nc3 {[%emt 0:01:44]} O-O {[%emt 0:07:03]} 11. Bd3 {[%emt 0:10:15]} Re8 {[%emt 0:03:47]} 12. O-O {[%emt 0:04:58]} Bd6 {[%emt 0:04:26]} 13. Rfd1 {[%emt 0:13:35]} b6 {[%emt 0:05:25]} 14. cxd5 {[%emt 0:09:59]} exd5 {[%emt 0:03:13]} 15. h3 {[%emt 0:02:02]} Bb7 {[%emt 0:08:25]} 16. Rac1 {[%emt 0:01:08]} Rac8 {[%emt 0:01:05]} 17. Rc2 {[%emt 0:02:18]} g6 {[%emt 0:04:32]} 18. Rdc1 {[%emt 0:02:09]} Kf8 {[%emt 0:04:00]} 19. a3 {[%emt 0:03:44]} Ng8 {[%emt 0:05:18]} 20. Na2 {[%emt 0:04:51]} Ne7 {[%emt 0:02:46]} 21. Nb4 {[%emt 0:01:31]} a5 {[%emt 0:05:16]} 22. Na2 {[%emt 0:01:03]} Kg7 {[%emt 0:04:47]} 23. Nc3 {[%emt 0:03:38]} b5 {[%emt 0:01:05]} 24. Ne2 {[%emt 0:06:17]} f6 {[%emt 0:02:19]} 25. Ra1 {[%emt 0:04:31]} Ra8 {[%emt 0:02:30]} 26. b3 {[%emt 0:01:38]} Kf7 {[%emt 0:01:42]} 27. a4 {[%emt 0:02:07]} b4 {[%emt 0:01:20]} 28. Kf1 {[%emt 0:02:33]} Kg7 {[%emt 0:00:21]} 29. Rac1 {[%emt 0:00:57]} Rac8 {[%emt 0:00:23]} 30. Kg1 {[%emt 0:01:37]} Kf7 {[%emt 0:00:12]} 31. Ne1 {[%emt 0:01:17]} f5 {[%emt 0:03:30]} 32. Nf3 {[%emt 0:01:01]} Kg7 {[%emt 0:02:38]} 33. Ne5 {[%emt 0:01:09]} Red8 {[%emt 0:02:53]} 34. Nf4 {[%emt 0:00:45]} Kf6 {[%emt 0:01:22]} 35. Nf3 {[%emt 0:00:54]} Re8 {[%emt 0:02:09]} 36. Ne2 {[%emt 0:00:25]} 1/2-1/2

[Event "Czech Youth U14 Girls 2024"]
[Site "Kouty nad Desnou"]
[Date "2024.03.13"]
[Round "6.7"]
[White "Barteckova, Valerie"]
[Black "Spetlova, Stella"]
[Result "1-0"]
[ECO "A40"]
[WhiteElo "1687"]
[BlackElo "1405"]
[Annotator "NA RC"]
[PlyCount "57"]
[EventDate "2024.03.10"]
[EventType "swiss"]
[EventCountry "CZE"]
[SourceTitle "playchess.com"]
[Source "ChessBase"]
[SourceQuality "1"]
[TimeControl "40/5400+30:1800+30"]

1. d4 {[%emt 0:00:03]} c6 {[%emt 0:00:17]} 2. Nf3 {[%emt 0:00:14]} d5 {[%emt 0:00:28]} 3. e3 {[%emt 0:00:24]} Bf5 {[%emt 0:00:36]} 4. c4 {[%emt 0:03:51]} dxc4 {[%emt 0:02:52]} 5. Bxc4 {[%emt 0:00:29]} e6 {[%emt 0:01:41]} 6. Nc3 {[%emt 0:01:35]} Nd7 {[%emt 0:02:05]} 7. O-O {[%emt 0:01:01]} Nb6 {[%emt 0:03:12]} 8. Bb3 {[%emt 0:00:50]} Qc7 {[%emt 0:02:20]} 9. Qe2 {[%emt 0:02:44]} Bd6 {[%emt 0:01:35]} 10. e4 {[%emt 0:02:58]} Bg4 {[%emt 0:02:19]} 11. h3 {[%emt 0:02:42]} Bxf3 {[%emt 0:03:17]} 12. Qxf3 {[%emt 0:00:14]} e5 {[%emt 0:03:40]} 13. d5 {[%emt 0:10:10]} c5 {[%emt 0:03:45]} 14. Be3 {[%emt 0:03:23]} a6 {[%emt 0:01:07]} 15. Rac1 {[%emt 0:01:03]} Nf6 {[%emt 0:01:50]} 16. h4 {[%emt 0:03:11]} h6 {[%emt 0:01:44]} 17. Rfe1 {[%emt 0:03:34]} Nbd7 {[%emt 0:02:06]} 18. Ne2 {[%emt 0:03:23]} b5 {[%emt 0:01:49]} 19. Ng3 {[%emt 0:01:13]} c4 {[%emt 0:00:46]} 20. Nf5 {[%emt 0:02:34]} Rg8 {[%emt 0:01:38]} 21. a3 {[%emt 0:19:28]} Nc5 {[%emt 0:00:45]} 22. Nxd6+ {[%emt 0:07:28]} Qxd6 {[%emt 0:00:20]} 23. Bxc5 {[%emt 0:00:06]} Qxc5 {[%emt 0:00:25]} 24. Ba2 {[%emt 0:02:45]} Rc8 {[%emt 0:01:11]} 25. Qf5 {[%emt 0:02:28]} Qc7 {[%emt 0:04:04]} 26. Red1 {[%emt 0:04:21]} Rd8 {[%emt 0:01:18]} 27. d6 {[%emt 0:02:01]} Rxd6 {[%emt 0:02:35]} 28. Qxe5+ {[%emt 0:03:38]} Qe7 {[%emt 0:00:36]} 29. Qxd6 {[%emt 0:00:48]} 1-0

[Event "Czech Youth U14 Girls 2024"]
[Site "Kouty nad Desnou"]
[Date "2024.03.13"]
[Round "6.8"]
[White "Nguyen Nhat, Minh Thu"]
[Black "Krisicova, Neli"]
[Result "1-0"]
[ECO "C50"]
[WhiteElo "1563"]
[BlackElo "1556"]
[Annotator "NA RC"]
[PlyCount "69"]
[EventDate "2024.03.10"]
[EventType "swiss"]
[EventCountry "CZE"]
[SourceTitle "playchess.com"]
[Source "ChessBase"]
[SourceQuality "1"]
[TimeControl "40/5400+30:1800+30"]

1. e4 {[%emt 0:00:02]} e5 {[%emt 0:00:20]} 2. Nf3 {[%emt 0:00:10]} Nc6 {[%emt 0:00:41]} 3. Bc4 {[%emt 0:01:14]} Nf6 {[%emt 0:00:56]} 4. d3 {[%emt 0:00:12]} Bc5 {[%emt 0:00:59]} 5. c3 {[%emt 0:01:31]} Bb6 {[%emt 0:01:58]} 6. b4 {[%emt 0:02:53]} a6 {[%emt 0:05:52]} 7. Nbd2 {[%emt 0:07:12]} d6 {[%emt 0:03:34]} 8. h3 {[%emt 0:21:59]} Be6 {[%emt 0:04:04]} 9. Bxe6 {[%emt 0:04:41]} fxe6 {[%emt 0:00:22]} 10. Qb3 {[%emt 0:01:57]} Qd7 {[%emt 0:05:57]} 11. O-O {[%emt 0:05:50]} Nh5 {[%emt 0:06:13]} 12. Ng5 {[%emt 0:11:03]} Nd8 {[%emt 0:03:59]} 13. Nc4 {[%emt 0:04:54]} Ba7 {[%emt 0:03:21]} 14. Qd1 {[%emt 0:03:22]} Nf6 {[%emt 0:04:15]} 15. Nf3 {[%emt 0:01:53]} O-O {[%emt 0:02:40]} 16. Bg5 {[%emt 0:04:38]} Nc6 {[%emt 0:07:11]} 17. a3 {[%emt 0:03:11]} Rae8 {[%emt 0:05:38]} 18. Bxf6 {[%emt 0:07:38]} Rxf6 {[%emt 0:00:19]} 19. d4 {[%emt 0:00:55]} exd4 {[%emt 0:05:16]} 20. cxd4 {[%emt 0:00:22]} Rf4 {[%emt 0:05:15]} 21. Qd3 {[%emt 0:01:59]} b5 {[%emt 0:07:38]} 22. Ncd2 {[%emt 0:02:54]} d5 {[%emt 0:02:31]} 23. g3 {[%emt 0:02:06]} Rf7 {[%emt 0:03:28]} 24. Ng5 {[%emt 0:00:45]} Rf6 {[%emt 0:05:08]} 25. exd5 {[%emt 0:01:24]} Qxd5 {[%emt 0:02:11]} 26. Qxh7+ {[%emt 0:00:23]} Kf8 {[%emt 0:00:23]} 27. Qh8+ {[%emt 0:00:05]} Ke7 {[%emt 0:00:11]} 28. Qxg7+ {[%emt 0:00:08]} Kd8 {[%emt 0:01:26]} 29. Qxf6+ {[%emt 0:00:21]} Kc8 {[%emt 0:00:11]} 30. Qf3 {[%emt 0:03:27]} Qxg5 {[%emt 0:00:36]} 31. Qxc6 {[%emt 0:00:08]} Bxd4 {[%emt 0:02:09]} 32. Qxe8+ {[%emt 0:01:35]} Kb7 {[%emt 0:00:05]} 33. Ne4 {[%emt 0:00:39]} Qf5 {[%emt 0:01:11]} 34. Nc5+ {[%emt 0:01:03]} Ka7 {[%emt 0:00:35]} 35. Qc6 {[%emt 0:00:35]} 1-0

[Event "Czech Youth U14 Girls 2024"]
[Site "Kouty nad Desnou"]
[Date "2024.03.13"]
[Round "6.9"]
[White "Hladka, Leontyna"]
[Black "Kratka, Tereza"]
[Result "1-0"]
[ECO "B54"]
[WhiteElo "1683"]
[BlackElo "1477"]
[Annotator "NA RC"]
[PlyCount "75"]
[EventDate "2024.03.10"]
[EventType "swiss"]
[EventCountry "CZE"]
[SourceTitle "playchess.com"]
[Source "ChessBase"]
[SourceQuality "1"]
[TimeControl "40/5400+30:1800+30"]

1. e4 {[%emt 0:00:03]} c5 {[%emt 0:00:22]} 2. Nf3 {[%emt 0:00:09]} d6 {[%emt 0:00:44]} 3. d4 {[%emt 0:00:45]} cxd4 {[%emt 0:00:29]} 4. Nxd4 {[%emt 0:00:30]} Nc6 {[%emt 0:00:35]} 5. Bb5 {[%emt 0:02:26]} Bd7 {[%emt 0:00:42]} 6. Bxc6 {[%emt 0:00:43]} Bxc6 {[%emt 0:00:40]} 7. Nc3 {[%emt 0:00:47]} Nf6 8. Qd3 g6 {[%emt 0:02:23]} 9. O-O {[%emt 0:05:06]} Bg7 {[%emt 0:00:51]} 10. f3 {[%emt 0:01:40]} O-O {[%emt 0:00:58]} 11. Be3 {[%emt 0:00:21]} Qd7 {[%emt 0:01:33]} 12. Kh1 {[%emt 0:02:56]} a6 {[%emt 0:03:15]} 13. a4 {[%emt 0:01:06]} Rac8 {[%emt 0:01:24]} 14. Rfd1 {[%emt 0:11:54]} h5 {[%emt 0:02:29]} 15. h4 {[%emt 0:05:31]} Qc7 {[%emt 0:01:43]} 16. Rac1 {[%emt 0:04:18]} Rfd8 {[%emt 0:03:01]} 17. Nxc6 {[%emt 0:04:48]} Qxc6 {[%emt 0:00:54]} 18. Bd4 {[%emt 0:01:55]} Re8 {[%emt 0:04:37]} 19. a5 {[%emt 0:02:24]} Nd7 {[%emt 0:02:48]} 20. Bxg7 {[%emt 0:01:48]} Kxg7 {[%emt 0:00:50]} 21. Qd4+ {[%emt 0:06:06]} Nf6 {[%emt 0:02:46]} 22. Nd5 {[%emt 0:03:41]} Qc5 {[%emt 0:03:23]} 23. Nxf6 {[%emt 0:03:38]} exf6 {[%emt 0:02:03]} 24. Qxc5 {[%emt 0:06:02]} Rxc5 {[%emt 0:01:06]} 25. Rxd6 {[%emt 0:02:00]} Rxa5 {[%emt 0:01:50]} 26. Rb6 {[%emt 0:01:39]} Re7 {[%emt 0:00:32]} 27. Rd1 {[%emt 0:01:07]} Rae5 {[%emt 0:01:52]} 28. Rd5 {[%emt 0:03:19]} R5e6 {[%emt 0:02:43]} 29. Rb4 {[%emt 0:01:16]} Re5 {[%emt 0:00:53]} 30. c4 {[%emt 0:02:19]} Rc7 {[%emt 0:00:43]} 31. b3 {[%emt 0:00:56]} a5 {[%emt 0:01:43]} 32. Rbb5 {[%emt 0:00:47]} Rxd5 {[%emt 0:01:21]} 33. exd5 {[%emt 0:00:48]} Kf8 {[%emt 0:02:36]} 34. Rxa5 {[%emt 0:00:41]} Ke7 {[%emt 0:00:34]} 35. c5 {[%emt 0:00:50]} Kd7 {[%emt 0:00:50]} 36. b4 {[%emt 0:01:02]} g5 {[%emt 0:01:01]} 37. hxg5 {[%emt 0:00:50]} fxg5 {[%emt 0:00:08]} 38. Ra8 1-0

[Event "Czech Youth U14 Girls 2024"]
[Site "Kouty nad Desnou"]
[Date "2024.03.13"]
[Round "6.10"]
[White "Peskova, Sara"]
[Black "Kavanova, Valentyna"]
[Result "0-1"]
[ECO "B72"]
[WhiteElo "1481"]
[BlackElo "1539"]
[Annotator "NA RC"]
[PlyCount "112"]
[EventDate "2024.03.10"]
[EventType "swiss"]
[EventCountry "CZE"]
[SourceTitle "playchess.com"]
[Source "ChessBase"]
[SourceQuality "1"]
[TimeControl "40/5400+30:1800+30"]

1. e4 {[%emt 0:00:03]} c5 {[%emt 0:00:04]} 2. Nf3 {[%emt 0:00:06]} d6 {[%emt 0:00:05]} 3. d4 {[%emt 0:00:16]} cxd4 {[%emt 0:00:08]} 4. Nxd4 {[%emt 0:00:05]} Nf6 {[%emt 0:00:09]} 5. Nc3 {[%emt 0:00:22]} g6 {[%emt 0:00:12]} 6. Be3 {[%emt 0:01:50]} Bg7 {[%emt 0:00:25]} 7. Bc4 {[%emt 0:00:53]} O-O {[%emt 0:00:25]} 8. O-O {[%emt 0:01:09]} Nc6 {[%emt 0:02:00]} 9. h3 {[%emt 0:01:56]} Nxe4 {[%emt 0:09:10]} 10. Bxf7+ {[%emt 0:04:01]} Rxf7 {[%emt 0:01:12]} 11. Nxe4 {[%emt 0:00:45]} Nxd4 {[%emt 0:06:19]} 12. Bxd4 {[%emt 0:01:09]} e5 {[%emt 0:00:20]} 13. Bc5 {[%emt 0:08:54]} Bxh3 {[%emt 0:13:29]} 14. Bxd6 {[%emt 0:15:29]} Bf5 {[%emt 0:09:20]} 15. Re1 {[%emt 0:02:47]} Rd7 {[%emt 0:02:18]} 16. Qd5+ {[%emt 0:02:27]} Kh8 {[%emt 0:02:17]} 17. Rad1 {[%emt 0:02:02]} Bxe4 {[%emt 0:04:45]} 18. Rxe4 {[%emt 0:00:39]} Qb6 {[%emt 0:02:16]} 19. Rxe5 {[%emt 0:08:44]} Rxd6 {[%emt 0:03:55]} 20. Qxd6 {[%emt 0:01:55]} Qxd6 {[%emt 0:00:03]} 21. Rxd6 {[%emt 0:01:34]} Bxe5 {[%emt 0:00:08]} 22. Rd7 {[%emt 0:00:23]} b6 {[%emt 0:00:51]} 23. c3 {[%emt 0:01:26]} h5 {[%emt 0:01:43]} 24. f3 {[%emt 0:01:57]} Bg7 {[%emt 0:01:51]} 25. Kh2 {[%emt 0:00:48]} Kh7 {[%emt 0:01:03]} 26. Kh3 {[%emt 0:00:57]} Kh6 {[%emt 0:00:11]} 27. f4 {[%emt 0:01:02]} a5 {[%emt 0:00:50]} 28. Rd6 {[%emt 0:02:03]} b5 {[%emt 0:02:51]} 29. f5 {[%emt 0:01:24]} b4 {[%emt 0:01:02]} 30. Rxg6+ {[%emt 0:01:51]} Kh7 {[%emt 0:00:14]} 31. Rg5 {[%emt 0:12:58]} bxc3 {[%emt 0:02:52]} 32. Rxh5+ {[%emt 0:01:12]} Kg8 {[%emt 0:00:49]} 33. bxc3 {[%emt 0:00:58]} Bxc3 {[%emt 0:00:08]} 34. Rg5+ {[%emt 0:03:56]} Kf7 {[%emt 0:00:40]} 35. Kg4 {[%emt 0:02:14]} Rd8 {[%emt 0:00:48]} 36. Rh5 {[%emt 0:06:29]} Rd2 {[%emt 0:00:46]} 37. Rh3 {[%emt 0:02:55]} Rxg2+ {[%emt 0:00:37]} 38. Rg3 {[%emt 0:01:49]} Rxg3+ {[%emt 0:00:36]} 39. Kxg3 {[%emt 0:00:01]} Ke7 {[%emt 0:00:13]} 40. Kf3 {[%emt 0:00:58]} Kd6 {[%emt 0:00:09]} 41. Ke4 {[%emt 0:32:11]} Kc5 {[%emt 0:30:16]} 42. Kd3 {[%emt 0:02:47]} Bf6 {[%emt 0:00:15]} 43. Ke4 {[%emt 0:01:43]} Kb4 {[%emt 0:00:27]} 44. Kd5 {[%emt 0:01:08]} a4 {[%emt 0:00:35]} 45. Kc6 {[%emt 0:01:44]} Ka3 {[%emt 0:00:14]} 46. Kb5 {[%emt 0:00:54]} Bd8 {[%emt 0:00:04]} 47. Kc4 {[%emt 0:00:00]} Kxa2 {[%emt 0:00:00]} 48. Kc3 {[%emt 0:00:00]} a3 {[%emt 0:00:00]} 49. Kc2 {[%emt 0:00:00]} Ka1 {[%emt 0:00:00]} 50. Kb3 {[%emt 0:00:00]} a2 {[%emt 0:00:00]} 51. Kc2 {[%emt 0:00:00]} Bf6 {[%emt 0:00:00]} 52. Kc1 {[%emt 0:00:00]} Be5 {[%emt 0:00:00]} 53. Kc2 {[%emt 0:00:00]} Bb2 {[%emt 0:00:00]} 54. f6 {[%emt 0:00:00]} Bxf6 {[%emt 0:00:00]} 55. Kc1 {[%emt 0:00:00]} Bh8 {[%emt 0:00:00]} 56. Kc2 {[%emt 0:00:00]} Bb2 {[%emt 0:00:00]} 0-1

[Event "Czech Youth U14 Girls 2024"]
[Site "Kouty nad Desnou"]
[Date "2024.03.13"]
[Round "6.11"]
[White "Martinkovicova, Nela"]
[Black "Sochorova, Valentyna"]
[Result "1-0"]
[ECO "C02"]
[WhiteElo "1476"]
[BlackElo "1485"]
[Annotator "NA RC"]
[PlyCount "36"]
[EventDate "2024.03.10"]
[EventType "swiss"]
[EventCountry "CZE"]
[SourceTitle "playchess.com"]
[Source "ChessBase"]
[SourceQuality "1"]
[TimeControl "40/5400+30:1800+30"]

1. e4 {[%emt 0:00:08]} e6 {[%emt 0:00:10]} 2. d4 {[%emt 0:01:00]} d5 {[%emt 0:00:10]} 3. e5 {[%emt 0:00:24]} c5 {[%emt 0:00:17]} 4. c3 {[%emt 0:00:55]} Nc6 {[%emt 0:00:34]} 5. Bb5 {[%emt 0:01:02]} Qb6 {[%emt 0:10:48]} 6. Bxc6+ {[%emt 0:06:00]} bxc6 {[%emt 0:04:16]} 7. Ne2 {[%emt 0:01:21]} cxd4 {[%emt 0:06:48]} 8. cxd4 {[%emt 0:03:29]} Ba6 {[%emt 0:14:12]} 9. Nbc3 {[%emt 0:10:21]} Ne7 {[%emt 0:09:14]} 10. f4 {[%emt 0:04:33]} Nf5 {[%emt 0:05:46]} 11. g4 {[%emt 0:06:24]} Nh4 {[%emt 0:12:15]} 12. O-O {[%emt 0:09:13]} c5 {[%emt 0:14:47]} 13. Be3 {[%emt 0:05:01]} Qxb2 {[%emt 0:09:43]} 14. Qa4+ {[%emt 0:02:48]} Kd8 {[%emt 0:04:45]} 15. Rab1 {[%emt 0:02:25]} Bb5 {[%emt 0:03:28]} 16. Qa5+ {[%emt 0:00:40]} Kc8 {[%emt 0:00:45]} 17. Rxb2 {[%emt 0:00:23]} Bc6 {[%emt 0:00:30]} 18. Qa6+ {[%emt 0:00:35]} Kd7 {[%emt 0:00:00]} 1-0

[Event "Czech Youth U14 Girls 2024"]
[Site "Kouty nad Desnou"]
[Date "2024.03.13"]
[Round "6.12"]
[White "Myronova, Sofia"]
[Black "Archlebova, Eva"]
[Result "1/2-1/2"]
[ECO "C48"]
[WhiteElo "1456"]
[BlackElo "1438"]
[Annotator "NA RC"]
[PlyCount "65"]
[EventDate "2024.03.10"]
[EventType "swiss"]
[EventCountry "CZE"]
[SourceTitle "playchess.com"]
[Source "ChessBase"]
[SourceQuality "1"]
[TimeControl "40/5400+30:1800+30"]

1. e4 {[%emt 0:00:12]} e5 {[%emt 0:00:24]} 2. Nf3 {[%emt 0:00:20]} Nc6 {[%emt 0:00:17]} 3. Nc3 {[%emt 0:00:38]} Nf6 {[%emt 0:01:57]} 4. Bb5 {[%emt 0:00:39]} d6 {[%emt 0:00:26]} 5. h3 {[%emt 0:01:07]} Bd7 {[%emt 0:01:25]} 6. d3 {[%emt 0:01:04]} a6 {[%emt 0:01:16]} 7. Ba4 {[%emt 0:00:38]} Be7 {[%emt 0:00:57]} 8. Be3 {[%emt 0:00:51]} h6 {[%emt 0:04:09]} 9. Qd2 {[%emt 0:03:11]} Qc8 {[%emt 0:20:45]} 10. Nd5 {[%emt 0:07:12]} Nxd5 {[%emt 0:00:44]} 11. exd5 {[%emt 0:00:14]} Nd4 {[%emt 0:10:01]} 12. Bxd7+ {[%emt 0:01:00]} Qxd7 {[%emt 0:00:04]} 13. Nxd4 {[%emt 0:00:25]} exd4 {[%emt 0:01:18]} 14. Bxd4 {[%emt 0:00:13]} Rg8 {[%emt 0:04:07]} 15. O-O-O {[%emt 0:01:48]} Qf5 {[%emt 0:04:24]} 16. Qe3 {[%emt 0:03:39]} Kd7 {[%emt 0:04:47]} 17. Qe4 {[%emt 0:01:36]} Bg5+ {[%emt 0:02:33]} 18. Kb1 {[%emt 0:00:42]} Qxe4 {[%emt 0:02:11]} 19. dxe4 {[%emt 0:00:17]} Rae8 {[%emt 0:00:16]} 20. f3 {[%emt 0:00:40]} Bf4 {[%emt 0:01:35]} 21. Rd3 {[%emt 0:09:05]} f6 {[%emt 0:01:22]} 22. g4 {[%emt 0:02:05]} Rgf8 {[%emt 0:02:45]} 23. Rg1 {[%emt 0:01:09]} g5 {[%emt 0:01:43]} 24. Rdd1 {[%emt 0:01:38]} b6 {[%emt 0:03:39]} 25. c4 {[%emt 0:00:54]} Be5 {[%emt 0:01:09]} 26. b3 {[%emt 0:01:18]} Bxd4 {[%emt 0:02:51]} 27. Rxd4 {[%emt 0:00:13]} Rh8 {[%emt 0:00:06]} 28. Rdd1 {[%emt 0:00:30]} h5 {[%emt 0:00:13]} 29. Kc2 {[%emt 0:00:30]} hxg4 {[%emt 0:00:05]} 30. hxg4 {[%emt 0:00:11]} Rh2+ {[%emt 0:01:46]} 31. Kc3 {[%emt 0:00:25]} Rxa2 32. Ra1 Rf2 33. Rgf1 1/2-1/2

[Event "Czech Youth U14 Girls 2024"]
[Site "Kouty nad Desnou"]
[Date "2024.03.13"]
[Round "6.14"]
[White "Pruskova, Justyna"]
[Black "Vaclavkova, Klara"]
[Result "1/2-1/2"]
[ECO "C55"]
[WhiteElo "1471"]
[BlackElo "1486"]
[Annotator "NA RC"]
[PlyCount "74"]
[EventDate "2024.03.10"]
[EventType "swiss"]
[EventCountry "CZE"]
[SourceTitle "playchess.com"]
[Source "ChessBase"]
[SourceQuality "1"]
[TimeControl "40/5400+30:1800+30"]

1. e4 {[%emt 0:00:02]} e5 {[%emt 0:00:01]} 2. Nf3 {[%emt 0:00:10]} Nc6 {[%emt 0:00:03]} 3. Bc4 {[%emt 0:00:06]} Nf6 {[%emt 0:00:12]} 4. d4 {[%emt 0:00:07]} exd4 {[%emt 0:00:05]} 5. e5 {[%emt 0:00:08]} d5 {[%emt 0:00:07]} 6. Bb5 {[%emt 0:00:04]} Ne4 {[%emt 0:00:14]} 7. Nxd4 {[%emt 0:00:49]} Bd7 {[%emt 0:00:13]} 8. Bxc6 {[%emt 0:00:23]} bxc6 {[%emt 0:00:08]} 9. O-O {[%emt 0:00:24]} Bc5 {[%emt 0:00:07]} 10. Be3 {[%emt 0:00:12]} Bb6 {[%emt 0:00:08]} 11. f3 {[%emt 0:00:15]} Ng5 {[%emt 0:00:12]} 12. f4 {[%emt 0:00:59]} Ne4 {[%emt 0:00:05]} 13. Nd2 {[%emt 0:01:27]} Nxd2 {[%emt 0:01:32]} 14. Qxd2 {[%emt 0:00:10]} O-O {[%emt 0:00:07]} 15. Kh1 {[%emt 0:02:34]} c5 {[%emt 0:07:09]} 16. Nf3 {[%emt 0:00:45]} Bf5 {[%emt 0:01:53]} 17. c3 {[%emt 0:00:26]} Rb8 {[%emt 0:00:47]} 18. b3 {[%emt 0:01:26]} a6 {[%emt 0:02:06]} 19. Rac1 {[%emt 0:05:45]} c4 {[%emt 0:03:02]} 20. Bxb6 {[%emt 0:00:27]} cxb6 {[%emt 0:00:19]} 21. bxc4 {[%emt 0:00:35]} dxc4 {[%emt 0:00:12]} 22. Qxd8 {[%emt 0:00:42]} Rfxd8 {[%emt 0:00:28]} 23. Nd4 {[%emt 0:00:47]} Bd3 {[%emt 0:00:51]} 24. Rf3 {[%emt 0:01:52]} Rbc8 {[%emt 0:04:18]} 25. Re1 {[%emt 0:01:28]} g6 {[%emt 0:02:05]} 26. e6 {[%emt 0:01:38]} fxe6 {[%emt 0:00:17]} 27. Rxe6 {[%emt 0:00:29]} Re8 {[%emt 0:00:35]} 28. Rxe8+ {[%emt 0:02:05]} Rxe8 {[%emt 0:00:09]} 29. h3 {[%emt 0:00:24]} Re1+ {[%emt 0:00:13]} 30. Kh2 {[%emt 0:00:30]} Ra1 {[%emt 0:00:16]} 31. Rf2 {[%emt 0:00:52]} Rc1 {[%emt 0:00:15]} 32. Rb2 {[%emt 0:01:00]} Rxc3 {[%emt 0:00:46]} 33. Rxb6 {[%emt 0:00:22]} Ra3 {[%emt 0:00:21]} 34. Rb2 {[%emt 0:01:00]} c3 {[%emt 0:00:24]} 35. Rf2 {[%emt 0:01:31]} Ra4 {[%emt 0:00:26]} 36. Nb3 {[%emt 0:03:05]} c2 {[%emt 0:01:19]} 37. Nc1 {[%emt 0:00:35]} Be4 {[%emt 0:01:39]} 1/2-1/2